bitfinex-derivatives/quotes_ETHF0:USTF0_20250911
["timestamp","ask_amount","ask_price","bid_price","bid_amount"]
[1757567982840,0.6978,4406.9,4406.8,2.03637282]
[1757567983044,0.4023,4406.9,4406.5,2.35317282]
[1757567983344,0.6978,4406.6,4406.5,2.56837282]
[1757567985145,0.6978,4406.6,4406.5,0.532]
[1757567995254,0.6978,4406.6,4406.5,0.2152]
[1757567995554,0.6978,4406.4,4406.3,0.532]
[1757567995947,0.6978,4406.4,4406.3,0.7347]
[1757568002554,0.2269,4406.5,4406.4,0.7383]
[1757568002755,0.2269,4406.5,4406.4,1.7251352]
[1757568003060,0.9592,4406.5,4406.4,0.7383]
[1757568005758,0.2269,4406.5,4406.4,0.7383]
[1757568005953,0.2269,4406.5,4406.4,0.96524]
[1757568006354,0.2269,4406.5,4406.4,3.00161282]
[1757568006761,0.2269,4406.5,4406.4,3.00467282]
[1757568007255,0.2269,4406.5,4406.4,0.9683]
[1757568007563,2.0,4407.0,4406.9,0.7383]
[1757568007858,2.3208,4407.0,4406.9,1.9551352]
[1757568008765,2.0,4407.0,4406.9,1.9551352]
[1757568009464,1.6763,4407.0,4406.9,1.9551352]
[1757568009659,2.79051667,4410.7,4407.3,0.4083]
[1757568009660,0.1218,4407.5,4407.3,0.4083]
[1757568009863,0.1218,4407.5,4407.4,1.2168352]
[1757568010058,0.1218,4407.5,4407.4,3.25655791]
[1757568010260,0.1218,4407.5,4407.4,1.2168352]
[1757568010465,0.1218,4408.5,4407.5,0.40828]
[1757568010664,0.332,4408.0,4407.6,0.23]
[1757568011061,0.1271,4408.0,4407.9,1.62986591]
[1757568011563,0.1271,4408.0,4407.8,0.23]
[1757568011765,0.3208,4407.9,4407.8,0.23]
[1757568012966,0.5257,4407.9,4407.8,0.23]
[1757568013967,0.5257,4407.9,4407.7,0.40826]
[1757568014169,0.3208,4407.8,4407.7,1.3950952]
[1757568014464,0.3208,4407.8,4407.7,1.6250952]
[1757568014659,0.5257,4407.8,4407.7,1.6250952]
[1757568016370,0.3208,4407.8,4407.7,1.6250952]
[1757568016561,0.3208,4407.8,4407.7,0.63826]
[1757568016867,0.3208,4407.8,4407.7,1.6250952]
[1757568017368,0.5257,4407.8,4407.7,1.6250952]
[1757568019168,0.5257,4407.8,4407.7,3.25078155]
[1757568021278,0.5257,4407.8,4407.7,3.02078155]
[1757568021482,0.5257,4407.8,4407.7,3.25078155]
[1757568023769,0.3208,4407.8,4407.7,3.25078155]
[1757568025078,0.3208,4407.8,4407.7,2.84252155]
[1757568025274,0.3208,4407.8,4407.6,1.62568635]
[1757568025275,0.3208,4407.7,4407.6,1.62568635]
[1757568025478,0.5333,4407.5,4407.3,1.85568635]
[1757568025682,0.7323,4407.4,4407.3,0.23]
[1757568025975,0.7323,4407.3,4407.1,1.62568635]
[1757568026166,0.3208,4407.2,4406.9,1.85568635]
[1757568026370,0.5333,4407.0,4406.9,1.85568635]
[1757568026573,0.8541,4407.0,4406.9,1.85568635]
[1757568027077,0.8541,4407.0,4406.9,2.84252155]
[1757568027986,0.8541,4407.0,4406.9,1.85568635]
[1757568031371,0.8541,4407.0,4406.9,0.23]
[1757568031771,0.5333,4407.0,4406.8,1.62568635]
[1757568031981,0.4039,4406.8,4406.7,1.62568635]
[1757568032287,0.7131,4406.8,4406.7,1.62568635]
[1757568033581,0.4039,4406.6,4406.5,1.62568635]
[1757568033776,0.7131,4406.6,4406.5,1.62568635]
[1757568041083,0.7131,4406.6,4406.4,2.84252155]
[1757568041289,0.841,4406.5,4406.4,2.84252155]
[1757568042291,0.841,4406.5,4406.4,1.62568635]
[1757568045385,0.4371,4406.5,4406.4,1.62568635]
[1757568045690,0.3092,4406.5,4406.4,1.62568635]
[1757568045878,0.4371,4406.5,4406.4,1.62568635]
[1757568046392,0.4371,4406.5,4406.4,2.61252155]
[1757568047083,0.4371,4406.5,4406.4,0.9868352]
[1757568047284,0.4371,4406.5,4406.3,0.23]
[1757568047485,0.4371,4406.5,4406.4,0.9868352]
[1757568049387,0.1218,4407.0,4406.4,8.15865701]
[1757568049587,0.5257,4407.0,4406.9,1.62788087]
[1757568049790,0.5257,4407.0,4406.9,0.23]
[1757568050093,0.8349,4407.0,4406.9,1.85788087]
[1757568051693,0.8349,4407.0,4406.9,1.62788087]
[1757568053099,0.8349,4407.0,4406.8,0.23]
[1757568055202,0.3092,4406.9,4406.8,2.67806271]
[1757568055400,0.3092,4406.9,4406.8,0.63834]
[1757568055900,0.3092,4407.2,4407.1,0.40832]
[1757568056095,0.3092,4407.2,4407.1,0.23]
[1757568056799,0.51,4407.2,4407.1,0.23]
[1757568056999,0.2008,4406.8,4406.7,3.25362387]
[1757568057199,0.5021,4406.8,4406.7,3.48362387]
[1757568057401,0.5021,4406.8,4406.7,0.63835]
[1757568057700,0.7081,4406.8,4406.6,2.84527387]
[1757568057901,0.7038,4406.7,4406.6,2.84527387]
[1757568058198,0.7038,4406.7,4406.6,0.23]
[1757568059201,0.3013,4406.6,4406.5,3.25364387]
[1757568059400,0.4978,4406.6,4406.5,3.48364387]
[1757568059991,0.4978,4406.6,4406.5,3.07527387]
[1757568060301,0.3013,4406.4,4406.3,4.42196241]
[1757568060600,0.03029397,4406.4,4406.3,5.18516241]
[1757568061003,0.22679397,4406.4,4406.3,4.77677241]
[1757568061194,0.43279397,4406.4,4406.3,3.04627387]
[1757568061498,0.43279397,4406.4,4406.3,0.23]
[1757568062094,0.4025,4406.4,4406.3,0.23]
[1757568062296,0.4025,4406.4,4406.3,0.431]
[1757568062497,0.7038,4406.4,4406.3,0.431]
[1757568062694,0.7038,4406.4,4406.3,0.23]
[1757568064196,0.7038,4406.4,4406.3,2.26891816]
[1757568066102,0.7038,4406.4,4406.3,2.03891816]
[1757568066705,0.7038,4406.4,4406.2,2.26891816]
[1757568067004,0.3013,4406.3,4406.2,2.46991816]
[1757568067304,0.7038,4406.3,4406.2,2.66561816]
[1757568067505,0.7038,4406.3,4406.2,2.43561816]
[1757568067706,0.7038,4406.3,4406.2,2.46991816]
[1757568071413,0.7038,4406.3,4406.2,2.23991816]
[1757568071608,0.7038,4406.3,4406.2,2.66561816]
[1757568072800,4.7038,4406.3,4406.2,2.03891816]
[1757568073005,4.7038,4406.3,4404.3,5.33539141]
[1757568073006,0.3013,4405.7,4405.5,2.03908179]
[1757568073304,0.1965,4405.6,4405.5,0.3967]
[1757568073509,0.4025,4405.6,4405.5,0.201]
[1757568073703,0.7038,4405.6,4405.5,0.201]
[1757568074506,0.1965,4405.1,4405.0,0.431]
[1757568074809,0.7038,4405.1,4405.0,0.6267]
[1757568075203,0.4978,4405.1,4405.0,0.6267]
[1757568075401,0.4978,4405.1,4405.0,0.7632]
[1757568075597,0.3013,4405.1,4405.0,0.7632]
[1757568076510,0.3013,4405.4,4405.3,0.5332]
[1757568077015,0.4978,4405.4,4405.3,0.5332]
[1757568077307,0.3013,4405.4,4405.3,0.5332]
[1757568077805,0.4978,4405.4,4405.3,0.5332]
[1757568079208,0.4978,4405.4,4405.3,0.3967]
[1757568081902,0.3013,4405.4,4405.3,0.5332]
[1757568083417,0.4978,4405.4,4405.3,0.5332]
[1757568083715,0.4978,4405.4,4405.3,0.3967]
[1757568084915,0.7038,4405.4,4405.3,0.3967]
[1757568087817,0.7038,4405.4,4405.3,0.201]
[1757568091424,0.7038,4405.4,4405.2,0.23]
[1757568092021,0.2011,4405.1,4405.0,0.81461]
[1757568092221,0.2989,4405.1,4405.0,1.18121]
[1757568092524,0.2989,4405.1,4405.0,2.34950854]
[1757568092724,0.2989,4405.1,4405.0,1.18121]
[1757568093019,0.2989,4405.1,4405.0,2.34950854]
[1757568093225,0.2989,4405.1,4405.0,4.38435202]
[1757568093825,0.2989,4405.1,4405.0,3.21605348]
[1757568094223,0.122,4406.0,4405.1,0.1366]
[1757568094533,0.3231,4406.0,4405.9,0.5427]
[1757568094823,0.622,4406.0,4405.9,0.7727]
[1757568096924,0.2989,4406.4,4405.9,0.86306999]
[1757568097120,0.622,4406.5,4406.4,0.95108]
[1757568098119,0.622,4406.5,4406.4,0.81448]
[1757568099929,0.822,4406.5,4406.4,0.81448]
[1757568100225,0.822,4406.5,4406.4,0.4061]
[1757568101731,0.822,4406.5,4406.4,0.204]
[1757568104334,0.822,4406.5,4406.3,0.23]
[1757568104633,0.5231,4406.5,4406.4,0.204]
[1757568105219,0.822,4406.5,4406.4,0.204]
[1757568107932,0.822,4406.5,4406.4,24.904]
[1757568108333,0.822,4406.5,4406.4,0.204]
[1757568108632,0.822,4406.5,4405.5,0.17709586]
[1757568108633,0.2989,4405.5,4405.4,3.38797387]
[1757568108826,0.6222,4406.0,4405.9,0.5427]
[1757568109135,0.8222,4406.0,4405.9,0.4061]
[1757568109525,0.6222,4406.0,4405.9,0.5427]
[1757568109724,0.6222,4406.0,4405.9,25.2427]
[1757568110428,0.4211,4406.0,4405.9,28.00105165]
[1757568110828,0.4211,4406.0,4405.9,29.30595019]
[1757568111029,0.4211,4406.0,4405.9,29.53595019]
[1757568111435,0.2989,4406.0,4405.9,29.53595019]
[1757568111630,0.4211,4406.0,4405.9,29.53595019]
[1757568112423,0.122,4406.5,4406.3,0.4061]
[1757568112630,0.2989,4406.4,4406.3,0.7727]
[1757568113333,0.3233,4407.0,4406.9,0.4061]
[1757568113526,0.3233,4407.0,4406.9,0.6361]
[1757568113723,0.5233,4407.0,4406.9,0.6361]
[1757568113922,0.8222,4407.0,4406.9,0.434]
[1757568114137,0.8222,4407.0,4406.9,0.23]
[1757568116331,0.2989,4406.9,4406.5,0.98673616]
[1757568116632,0.2989,4405.9,4405.6,2.03484348]
[1757568116838,0.7,4405.1,4405.0,0.4061]
[1757568117334,0.7,4405.1,4405.0,0.6361]
[1757568117529,0.7,4405.1,4405.0,0.434]
[1757568117736,0.2989,4405.1,4405.0,0.7858]
[1757568118536,0.7019,4405.1,4405.0,2.46884348]
[1757568119129,0.7019,4405.1,4405.0,3.45557964]
[1757568119637,0.7019,4405.1,4405.0,2.46884348]
[1757568120630,0.7019,4405.1,4405.0,2.26484348]
[1757568120829,0.7019,4405.1,4405.0,0.23]
[1757568121535,0.7122,4404.8,4404.7,2.24794348]
[1757568121741,0.7122,4404.8,4404.7,0.2131]
[1757568122239,0.7122,4404.8,4404.7,0.4285]
[1757568128354,0.3092,4404.7,4404.6,0.99014134]
[1757568128548,0.7122,4404.7,4404.6,0.99014134]
[1757568129551,0.7122,4404.7,4404.6,1.20324134]
[1757568129853,1.69893616,4404.7,4404.6,0.00340518]
[1757568130154,0.8397,4404.0,4403.9,2.03484348]
[1757568130346,0.8397,4404.0,4403.9,0.23]
[1757568130546,0.8397,4404.0,4403.9,0.4431]
[1757568130850,0.8397,4404.0,4403.4,2.60314348]
[1757568130851,0.4367,4403.5,4403.4,2.60314348]
[1757568131154,0.4367,4403.5,4403.4,1.55503616]
[1757568131455,0.4367,4403.5,4403.4,29.15286572]
[1757568132046,0.3092,4403.5,4403.4,29.15286572]
[1757568132449,0.4367,4403.5,4403.4,29.15286572]
[1757568132857,0.3092,4403.5,4403.4,29.15286572]
[1757568133053,0.3092,4403.9,4403.8,0.5683]
[1757568133352,0.3092,4403.8,4403.7,0.98673616]
[1757568133552,0.3092,4403.8,4403.7,1.21673616]
[1757568133753,0.7122,4403.8,4403.7,1.42983616]
[1757568134156,0.8397,4403.5,4403.4,25.89983616]
[1757568134456,0.8397,4403.5,4403.4,28.91685674]
[1757568134755,0.8397,4403.5,4403.4,26.12983616]
[1757568134955,0.6355,4403.5,4403.4,26.26963616]
[1757568135156,0.4367,4403.5,4403.4,26.26963616]
[1757568135545,0.3092,4403.5,4403.4,26.67829616]
[1757568136056,0.4367,4403.5,4403.4,26.67829616]
[1757568136258,0.4367,4403.5,4403.4,26.53849616]
[1757568137254,0.4367,4403.5,4403.4,26.12983616]
[1757568137453,0.8397,4403.5,4403.4,25.1431]
[1757568137844,0.8397,4403.5,4403.4,0.4431]
[1757568138052,0.8397,4403.5,4403.4,0.23]
[1757568138443,0.3092,4403.4,4403.2,24.7]
[1757568138647,0.1988,4403.4,4403.3,0.4285]
[1757568138851,0.403,4403.4,4403.3,1.41523616]
[1757568139162,0.508,4403.4,4403.3,1.55503616]
[1757568139456,0.1275,4403.5,4403.3,1.55503616]
[1757568139457,0.5305,4404.0,4403.9,0.2131]
[1757568139657,0.5305,4404.0,4403.6,0.23]
[1757568139851,0.403,4403.7,4403.6,0.23]
[1757568140050,0.7122,4403.7,4403.6,0.23]
[1757568141156,0.8397,4403.5,4403.4,0.40866]
[1757568141358,0.8397,4403.5,4403.4,0.85176]
[1757568141755,0.8397,4403.5,4403.4,1.06716]
[1757568142158,0.6355,4403.5,4403.4,1.20696]
[1757568142354,0.6355,4403.5,4403.4,2.19369616]
[1757568142755,0.4367,4403.5,4403.4,2.19369616]
[1757568143156,0.1275,4404.0,4403.4,2.19369616]
[1757568143157,0.6355,4404.0,4403.9,0.83711]
[1757568143362,0.6355,4404.0,4403.9,2.05384616]
[1757568144450,0.3092,4404.0,4403.9,5.20208294]
[1757568144655,0.1275,4404.5,4404.4,0.62167]
[1757568144656,0.5305,4404.5,4404.4,0.62167]
[1757568144865,0.8397,4404.5,4404.4,0.2131]
[1757568145356,0.5305,4404.5,4404.2,0.63858]
[1757568145562,0.7122,4404.3,4404.2,0.85168]
[1757568145859,0.7122,4404.3,4404.2,0.63858]
[1757568147467,0.7122,4404.3,4404.2,0.23]
[1757568149064,0.2933,4404.2,4404.0,0.4086]
[1757568149262,0.6897,4404.1,4404.0,0.4086]
[1757568150364,0.6897,4404.1,4404.0,0.8178]
[1757568150551,0.6897,4404.1,4404.0,0.4086]
[1757568150956,0.6897,4403.9,4403.8,0.40862]
[1757568151357,0.6897,4403.8,4403.7,0.98673616]
[1757568151569,0.6897,4403.8,4403.6,0.23]
[1757568151767,0.5218,4403.5,4403.4,2.87540348]
[1757568152064,0.8151,4403.5,4403.4,5.98161882]
[1757568153164,0.8151,4403.5,4403.4,6.96835498]
[1757568153365,0.4187,4403.5,4403.4,7.10825498]
[1757568153564,0.2933,4403.5,4403.4,7.10825498]
[1757568153966,0.4187,4403.5,4403.4,7.10825498]
[1757568155070,0.2933,4403.5,4403.4,7.10825498]
[1757568155368,0.2933,4403.5,4403.4,5.0734115]
[1757568155569,0.8151,4403.5,4403.4,3.30811534]
[1757568155760,0.4889,4403.9,4403.8,0.4092]
[1757568155962,0.2933,4403.9,4403.8,1.76583616]
[1757568156560,0.4889,4403.9,4403.8,1.76583616]
[1757568156767,0.4889,4403.9,4403.8,0.6392]
[1757568156963,0.4889,4403.9,4403.8,1.62593616]
[1757568157169,0.4889,4403.9,4403.8,1.76583616]
[1757568159270,0.6897,4403.9,4403.8,0.6392]
[1757568159471,0.4889,4403.9,4403.8,1.76583616]
[1757568160872,0.4889,4403.9,4403.8,1.62593616]
[1757568161274,0.4889,4403.9,4403.8,1.76583616]
[1757568161970,0.2933,4403.9,4403.8,1.76583616]
[1757568162266,0.1275,4405.0,4404.5,0.4092]
[1757568162267,0.2933,4404.9,4404.5,0.4092]
[1757568162470,0.8172,4405.0,4404.9,0.4092]
[1757568163173,0.6164,4405.0,4404.9,1.53583616]
[1757568163373,0.6164,4405.0,4404.9,3.57669412]
[1757568163566,0.6164,4405.0,4404.9,3.43679412]
[1757568164273,0.6164,4405.0,4404.9,1.39593616]
[1757568164880,0.61770518,4405.5,4405.4,0.4092]
[1757568165174,0.61770518,4405.5,4405.4,0.6392]
[1757568166376,0.81850518,4405.5,4405.4,0.6392]
[1757568166972,0.8151,4405.0,4404.9,0.61041]
[1757568167177,0.8151,4405.0,4404.9,0.84041]
[1757568167366,0.8151,4405.0,4404.9,1.04771]
[1757568168873,0.32440518,4405.5,4405.4,0.2019]
[1757568169078,0.32440518,4405.5,4405.4,0.4092]
[1757568169079,0.61770518,4405.5,4405.4,0.4092]
[1757568169276,0.81850518,4405.5,4405.4,0.4092]
[1757568169679,0.81850518,4405.5,4405.4,0.2019]
[1757568169882,0.81850518,4405.5,4405.3,0.23]
[1757568172380,0.2933,4405.4,4405.3,0.23]
[1757568172675,0.6897,4405.4,4405.3,0.23]
[1757568173479,0.6897,4405.4,4405.3,0.4319]
[1757568177390,0.6897,4405.4,4405.3,0.2019]
[1757568178486,0.6897,4405.4,4405.2,0.23]
[1757568179385,0.3355,4405.0,4404.9,0.81622]
[1757568179587,0.6409,4405.0,4404.9,1.04622]
[1757568179786,0.6409,4405.0,4404.9,3.71355316]
[1757568180085,0.6409,4405.0,4404.7,1.1691033]
[1757568180086,0.8366,4405.0,4404.7,0.23]
[1757568181176,0.8366,4405.0,4404.9,0.2021]
[1757568181587,0.8366,4405.0,4404.4,2.04085796]
[1757568181588,0.8366,4404.5,4404.4,2.04085796]
[1757568181785,0.8366,4404.5,4404.4,0.23]
[1757568182388,0.8366,4404.5,4403.9,24.9021]
[1757568182389,0.8366,4404.0,4403.9,24.9021]
[1757568182883,0.8366,4404.0,4403.9,25.1321]
[1757568183088,0.8366,4404.0,4403.9,24.93]
[1757568183479,0.8366,4404.0,4403.9,25.1321]
[1757568184191,0.8366,4404.0,4403.9,24.93]
[1757568184685,0.8366,4404.0,4403.9,25.1321]
[1757568186587,0.8366,4404.0,4403.9,24.9021]
[1757568186787,0.8366,4404.0,4403.9,25.1321]
[1757568186987,0.8366,4404.0,4403.9,24.7]
[1757568187392,0.8366,4404.0,4403.9,0.23]
[1757568187994,0.3054,4403.9,4403.6,24.7]
[1757568188289,0.7121,4403.9,4403.8,0.2021]
[1757568188491,0.7121,4403.9,4403.8,0.4321]
[1757568189186,0.7121,4403.9,4403.8,0.23]
[1757568189884,0.7121,4403.9,4403.2,2.04085796]
[1757568190086,0.6409,4403.0,4402.9,0.4077]
[1757568190583,0.6409,4403.0,4402.9,25.1077]
[1757568191685,0.6409,4404.0,4403.9,0.5475]
[1757568191890,0.4299,4404.0,4403.9,0.5475]
[1757568192097,0.211,4404.4,4404.3,0.4077]
[1757568192396,0.5164,4404.4,4404.3,0.4077]
[1757568192992,0.7121,4404.4,4404.3,0.4077]
[1757568193788,0.7121,4404.4,4404.3,0.2021]
[1757568194092,0.7121,4404.4,4404.2,0.231]
[1757568195394,0.6409,4403.5,4403.4,0.4077]
[1757568195583,0.4299,4403.5,4403.4,0.7785]
[1757568195791,0.3054,4403.5,4403.4,0.7785]
[1757568196296,0.3054,4403.5,4403.4,3.68020353]
[1757568197997,0.4299,4403.5,4403.4,3.68020353]
[1757568198198,0.6409,4403.5,4403.4,3.68020353]
[1757568198494,0.6409,4403.5,4403.4,3.54040353]
[1757568200298,0.8366,4403.5,4403.4,3.54040353]
[1757568200798,0.6409,4403.5,4403.4,3.68020353]
[1757568201098,0.6409,4403.5,4403.4,3.30940353]
[1757568201294,0.8366,4403.5,4403.4,3.54040353]
[1757568202403,0.8366,4403.5,4403.4,5.58126149]
[1757568202693,0.8366,4403.5,4403.4,2.67955796]
[1757568202898,0.8366,4403.5,4403.4,0.6387]
[1757568203288,0.8366,4403.5,4403.4,0.2021]
[1757568203487,0.8366,4403.5,4403.4,0.4331]
[1757568205206,0.8366,4403.5,4403.4,0.6387]
[1757568205898,0.3054,4403.5,4403.4,0.7785]
[1757568206104,0.5164,4403.9,4403.5,0.1398]
[1757568206400,0.7121,4403.9,4403.8,0.4077]
[1757568206605,0.7121,4403.9,4403.8,0.6387]
[1757568208300,0.3054,4403.9,4403.8,0.6387]
[1757568208507,0.338,4404.5,4404.4,0.403]
[1757568208707,0.5472,4404.5,4404.4,0.403]
[1757568209205,0.8513,4404.5,4404.4,0.403]
[1757568210609,0.8513,4404.5,4404.1,24.7]
[1757568210806,0.5474,4404.0,4403.9,0.231]
[1757568211102,0.8515,4404.0,4403.9,3.39997219]
[1757568211703,0.8515,4404.0,4403.9,0.231]
[1757568212006,0.8515,4404.0,4403.9,0.437]
[1757568213307,0.8515,4404.0,4403.9,0.231]
[1757568217707,0.5474,4404.0,4403.5,2.44950796]
[1757568218014,0.7268,4403.7,4403.6,0.437]
[1757568218212,0.7268,4403.7,4403.6,0.634]
[1757568218414,0.7268,4403.7,4403.6,25.334]
[1757568220010,0.7268,4403.7,4403.6,24.7]
[1757568220219,0.7268,4403.7,4403.6,24.931]
[1757568220418,0.7268,4403.7,4403.6,25.137]
[1757568221418,0.7268,4403.7,4403.6,27.17785796]
[1757568222016,0.7268,4403.7,4403.6,26.97185796]
[1757568222213,0.4227,4403.2,4403.1,2.84527387]
[1757568222417,1.8959033,4403.2,4403.1,2.84527387]
[1757568222714,0.7268,4402.9,4402.8,0.17261546]
[1757568223118,0.7268,4402.9,4402.8,0.48001546]
[1757568224111,0.7268,4402.9,4402.8,0.17261546]
[1757568224318,0.7268,4402.9,4402.8,0.68601546]
[1757568224912,0.7268,4402.9,4402.8,0.37861546]
[1757568225807,0.7268,4402.9,4402.8,0.68601546]
[1757568226210,0.7268,4402.8,4402.7,0.206]
[1757568226515,0.7268,4402.8,4402.7,0.7104]
[1757568226516,0.4227,4402.8,4402.7,0.7104]
[1757568226812,0.3041,4402.8,4402.5,0.3329]
[1757568227005,0.4227,4402.6,4402.5,0.5299]
[1757568227414,0.4227,4402.6,4402.5,0.8373]
[1757568227609,0.2135,4402.6,4402.5,0.8373]
[1757568227815,0.3041,4403.1,4402.6,0.3074]
[1757568228117,0.7268,4403.1,4403.0,0.5134]
[1757568228921,0.3041,4403.0,4402.6,0.3074]
[1757568229114,0.7268,4403.0,4402.9,0.5134]
[1757568231515,0.4227,4403.0,4402.9,0.7104]
[1757568231728,0.2135,4403.0,4402.9,0.7104]
[1757568232823,0.21690518,4403.3,4403.2,0.7104]
[1757568234918,0.42610518,4403.3,4403.2,0.7104]
[1757568235122,1.71853243,4403.3,4403.2,0.5134]
[1757568235821,0.3041,4403.2,4403.0,0.3074]
[1757568236023,0.7268,4403.1,4402.9,0.40871]
[1757568236220,0.3041,4403.0,4402.9,0.40871]
[1757568236423,0.7268,4403.0,4402.9,0.61471]
[1757568236624,0.7268,4403.0,4402.9,0.81171]
[1757568236824,0.7268,4403.0,4402.9,1.11911]
[1757568238026,0.7268,4403.0,4402.9,0.7104]
[1757568240226,0.4227,4403.0,4402.9,0.7104]
[1757568241028,0.7401,4403.0,4402.9,0.7104]
[1757568242225,0.4227,4403.0,4402.9,0.7104]
[1757568243226,0.7401,4403.0,4402.9,0.7104]
[1757568244724,0.7401,4403.0,4402.9,0.5134]
[1757568245325,0.7401,4403.0,4402.9,0.3074]
[1757568246131,0.7401,4403.0,4402.5,0.1269]
[1757568246425,0.4074,4402.4,4402.3,0.5294]
[1757568246726,0.7248,4402.4,4402.3,0.5294]
[1757568247326,0.7248,4402.4,4402.0,0.1269]
[1757568247629,0.00340518,4403.3,4402.7,0.2122]
[1757568247630,1.71312725,4402.8,4402.7,0.2122]
[1757568247824,1.71312725,4402.8,4402.7,0.5294]
[1757568249031,0.4074,4402.8,4402.7,0.7388]
[1757568249230,0.7248,4402.8,4402.7,0.7388]
[1757568249530,0.7248,4402.8,4402.7,0.5294]
[1757568249929,1.71312725,4402.8,4402.7,0.7388]
[1757568252734,1.71312725,4402.8,4402.7,0.5294]
[1757568253533,1.71312725,4402.8,4402.7,0.3172]
[1757568255141,1.71312725,4402.8,4402.7,0.5294]
[1757568257832,0.4074,4402.1,4402.0,0.4441]
[1757568258132,0.7248,4402.1,4402.0,0.8683]
[1757568258335,0.202,4402.1,4402.0,0.8683]
[1757568260339,0.0623,4403.0,4402.1,0.3172]
[1757568260638,0.7248,4402.5,4402.4,0.5294]
[1757568261135,0.7248,4402.5,4402.4,0.7388]
[1757568261333,0.7248,4402.5,4402.4,0.5294]
[1757568262835,0.7248,4402.5,4402.4,0.7388]
[1757568263133,0.7248,4403.2,4403.1,0.7388]
[1757568263626,0.4074,4403.2,4403.1,0.7388]
[1757568263826,0.4074,4403.2,4403.0,0.1295]
[1757568264129,0.7248,4402.6,4402.5,0.4467]
[1757568264324,0.7248,4402.6,4402.5,0.6589]
[1757568266340,0.98832725,4402.8,4402.0,2.69529619]
[1757568266341,0.4074,4402.1,4402.0,2.69529619]
[1757568266528,0.4074,4402.1,4402.0,0.8683]
[1757568269044,0.202,4402.1,4402.0,0.8683]
[1757568270846,0.4005,4402.1,4402.0,0.8683]
[1757568273353,0.694,4402.1,4402.0,0.8683]
[1757568283865,0.694,4402.1,4402.0,0.5294]
[1757568284363,0.694,4402.1,4402.0,0.655]
[1757568284663,0.694,4402.1,4402.0,0.3172]
[1757568284860,0.694,4402.1,4402.0,0.5318]
[1757568285163,0.202,4402.1,4402.0,0.8585]
[1757568285662,0.694,4402.1,4402.0,0.6574]
[1757568288466,0.694,4402.1,4402.0,0.5318]
[1757568288965,0.694,4402.1,4402.0,0.3172]
[1757568289961,0.694,4402.1,4402.0,0.8585]
[1757568290268,1.68232725,4402.1,4402.0,0.8585]
[1757568291362,1.68232725,4402.1,4402.0,0.5318]
[1757568291764,5.68232725,4402.1,4401.5,0.1269]
[1757568291965,1.68502725,4401.6,4401.5,0.4304]
[1757568292163,1.68502725,4401.6,4401.5,0.645]
[1757568292967,0.2047,4401.6,4401.5,0.8461]
[1757568293169,0.98832725,4401.7,4401.5,0.5426]
[1757568293473,1.19302725,4401.7,4401.6,0.7192]
[1757568293666,1.68502725,4401.7,4401.6,0.7192]
[1757568293866,1.68502725,4401.7,4401.6,0.5181]
[1757568294077,1.68502725,4401.7,4401.6,0.3035]
[1757568294567,0.6967,4401.7,4401.1,0.3035]
[1757568296170,0.6967,4401.2,4401.1,0.7192]
[1757568296671,0.6967,4401.2,4401.1,0.3035]
[1757568297078,0.6967,4401.2,4401.1,0.5181]
[1757568297575,0.4032,4401.2,4401.1,0.7234]
[1757568298270,0.715,4401.2,4401.1,0.7234]
[1757568299078,0.9422,4401.2,4401.1,0.7234]
[1757568299379,0.4018,4400.6,4400.5,0.82]
[1757568299571,0.7136,4400.6,4400.5,0.82]
[1757568299776,0.4018,4400.6,4400.5,0.82]
[1757568300071,1.17147769,4400.8,4400.5,0.82]
[1757568300277,1.57327769,4400.8,4400.7,0.7012]
[1757568300473,0.00340518,4401.0,4400.7,0.7012]
[1757568300672,0.00340518,4401.0,4400.5,0.1188]
[1757568300673,0.21060518,4401.0,4400.9,0.4056]
[1757568300977,0.21060518,4401.0,4400.9,0.7012]
[1757568301188,1.57668287,4401.0,4400.9,0.7012]
[1757568301670,1.88848287,4401.0,4400.9,0.7012]
[1757568302077,1.57668287,4401.0,4400.9,0.7012]
[1757568303572,1.88848287,4401.0,4400.9,0.7012]
[1757568303976,0.71700518,4401.0,4400.9,0.7012]
[1757568304179,1.19185495,4403.0,4400.9,4.4056]
[1757568304378,0.8369,4403.0,4402.1,0.2956]
[1757568304678,0.2072,4402.2,4402.1,0.7012]
[1757568305677,0.3118,4402.4,4402.1,0.7012]
[1757568305878,0.3118,4402.8,4402.2,0.2956]
[1757568306181,0.7136,4402.8,4402.7,0.4959]
[1757568307774,1.88507769,4402.8,4402.7,0.4959]
[1757568308480,1.88507769,4402.8,4402.7,0.7012]
[1757568308680,0.7136,4402.8,4402.7,0.7012]
[1757568309878,0.2072,4402.8,4402.7,0.7012]
[1757568310085,0.519,4402.8,4402.7,0.7012]
[1757568312383,0.2072,4402.8,4402.7,0.7012]
[1757568312584,0.2072,4403.1,4403.0,0.1188]
[1757568312782,0.2072,4403.1,4403.0,0.5244]
[1757568312783,0.7136,4403.1,4403.0,0.5244]
[1757568313190,0.7136,4403.1,4403.0,0.82]
[1757568313390,0.1233,4403.0,4402.6,0.2956]
[1757568313588,0.3118,4403.1,4402.6,0.7012]
[1757568313897,0.3118,4403.1,4402.5,0.1188]
[1757568313898,0.519,4403.4,4403.3,0.7012]
[1757568314192,0.2072,4403.4,4403.3,0.7012]
[1757568314485,0.519,4403.7,4403.6,0.7012]
[1757568314688,0.232,4404.0,4403.6,0.4056]
[1757568314891,0.751,4404.0,4403.9,0.4056]
[1757568315093,0.9456,4404.0,4403.9,0.7012]
[1757568315699,0.6338,4404.0,4403.9,0.7012]